Cogmind - Beta 16 @@@ ROGUE MODE // 2025.11.15 @ 06:38:56 // Winter2019/RPGLIKE Player: Jaegerpls Result: Destroyed by P-60 Hacker with Shock Rifle Performance ------------- Evolutions (4) 2000 Regions Visited (5) 1000 Robots Destroyed (66) 330 Value Destroyed (1619) 1619 Prototype IDs (31) 620 Alien Tech Used (0) 0 Bonus (800) 800 TOTAL SCORE: 6369 Bonus ------- Registered with UFD 300 Met Optimus in HQ 500 Cogmind --------- Core Integrity 0/600 Matter 284/300 Energy 176/180 System Corruption 3% Temperature Cool (0) Movement Hovering (48) Location -6/Factory Parts ------- > --- POWER (1) -------- Meta Core > --- PROPULSION (3+1) - Gravmag System (+) Gravmag System Gravmag System Improved Gravmag System > --- UTILITY (5+1) ---- Weight Redist. System (+) Advanced Terrain Scanner Improved Melee Analysis Suite Expert System (Blank) Makeshift Hacking Suite A0-MCA's Component Scanner > --- WEAPON (3+1) ----- Scythe Companion Sword Makeshift Spear > --- INVENTORY (2) ---- Gravmag System Makeshift Light Armor Plating Peak State ------------ > --- POWER ------------ Meta Core > --- PROPULSION ------- Gravmag System Gravmag System Gravmag System Improved Gravmag System > --- UTILITY ---------- Weight Redist. System Advanced Terrain Scanner Improved Melee Analysis Suite Expert System Makeshift Hacking Suite A0-MCA's Component Scanner > --- WEAPON ----------- Scythe Companion Sword Makeshift Spear > --- INVENTORY -------- Makeshift Light Armor Plating [Rating: 74] Favorites ----------- Power Meta Core Engine Light Ion Engine Power Core Meta Core Propulsion Hover Unit Wheel Compact Wheel Hover Unit Hover Unit Flight Unit VTOL Module Utility Signal Interpreter Device Improved Terrain Scanner Processor Signal Interpreter Hackware Makeshift Hacking Suite Protection Makeshift Light Armor Plating Weapon Flail Energy Gun Small Laser Impact Weapon Flail Slashing Weapon Scythe Piercing Weapon Makeshift Spear Build | -11 -10 -10 -9 -9 -6 ------- Run | Yrd Mat Sub Rec Scr Fac Slots Evolved 8 | 4 . 2 . . 2 Power . | . . . . . . Propulsion 2 | 1 . . . . 1 Utility 4 | 2 . 1 . . 1 Weapon 2 | 1 . 1 . . . Parts Attached 47 | 7 13 9 5 6 7 Power 4 | 1 1 2 . . . Engine 3 | 1 1 1 . . . Core 1 | . . 1 . . . Reactor . | . . . . . . Propulsion 20 | 2 6 3 3 1 5 Treads . | . . . . . . Leg . | . . . . . . Wheel 9 | 2 2 3 2 . . Hover 8 | . 2 . . 1 5 Flight 3 | . 2 . 1 . . Utility 14 | 2 4 2 1 3 2 Device 5 | 2 1 . 1 1 . Storage . | . . . . . . Processor 6 | . 3 . . 2 1 Hackware 1 | . . . . . 1 Protection 2 | . . 2 . . . Artifact . | . . . . . . Weapon 9 | 2 2 2 1 2 . Energy Gun 2 | 2 . . . . . Energy Cannon . | . . . . . . Ballistic Gun . | . . . . . . Ballistic Cannon . | . . . . . . Launcher . | . . . . . . Special Weapon . | . . . . . . Impact Weapon 4 | . 2 1 1 . . Slashing Weapon 2 | . . . . 2 . Piercing Weapon 1 | . . 1 . . . Special Melee Weapon . | . . . . . . Unidentified Prototypes . | . . . . . . Parts Lost 3 | . . 3 . . . Power 1 | . . 1 . . . Propulsion 2 | . . 2 . . . Utility . | . . . . . . Weapon . | . . . . . . Highest Loss Streak 1 | . . 1 . . . To Critical Strikes . | . . . . . . Average Backups . | . . . 1 . 1 Power . | . . . 1 . . Propulsion . | . . . . . . Utility . | . . . . . 1 Weapon . | . . . . . . Tool/Special . | . . . . . . Unused Backups 4 | . 3 . . 1 . Power 1 | . . . . 1 . Propulsion 1 | . 1 . . . . Utility . | . . . . . . Weapon 2 | . 2 . . . . Tool/Special . | . . . . . . Average Slot Usage (%) 84 | . 98 83 77 76 89 Engine 3 | . 12 4 . . . Core 4 | . . 3 7 7 6 Wheel 4 | . 17 2 10 . . Hover 8 | . 3 12 . . 20 Flight 2 | . 3 . 2 7 2 Device 16 | . 21 14 19 19 13 Processor 11 | . 14 8 7 10 19 Protection 5 | . . 7 7 7 . Energy Gun 1 | . 7 . . . . Impact Weapon 16 | . 17 26 15 4 . Slashing Weapon 3 | . . . . 9 13 Piercing Weapon 2 | . . . 7 7 6 Peak Build Rating 74 | 9 13 35 36 58 74 Average Rating 33 | 6 11 24 34 43 71 On Entrance 25 | . 9 13 35 35 58 Avg Prop Armor Cover (%) 6 | . 8 6 . 4 7 Naked Turns . | . . . . . . Heaviest Build 20 | 9 12 19 20 20 19 Greatest Support 48 | 26 26 45 45 19 48 Greatest Overweight (x) 2 | . 2 1 1 1 . Average Overweight (x) . | . . . . . . Largest Inventory Capacity 2 | 1 1 1 1 1 2 Average Capacity 1 | 1 1 1 1 1 1 Most Carried 2 | 1 1 1 1 1 2 Average Carried . | . . . 1 . 1 Final Capacity 2 | 1 1 1 1 1 2 Final Carried 2 | 1 1 1 1 1 2 Class Distribution -------------------- 61% | Gladiator 15% | Scout 14% | Scavenger-Gladiator 5% | Mutant Dominant Class ---------------- Gladiator | -10/Materials Gladiator | -10/Subcaves Gladiator | -9/Recycling Gladiator | -9/Scraptown Scout | -6/Factory Resources | -11 -10 -10 -9 -9 -6 ----------- Run | Yrd Mat Sub Rec Scr Fac Matter Collected 700 | 260 160 75 40 90 75 Remotely . | . . . . . . Salvage Created 2252 | 106 574 572 272 . 728 Parts 127 | 11 33 19 5 . 59 Haulers Intercepted 3 | . 2 . . . 1 Recyclers Shooed . | . . . . . . Parts Field Recycled . | . . . . . . Retrieved Matter . | . . . . . . Parts Self-Destructed 10 | . . 10 . . . Prevented 2 | . . 2 . . . Parts Restored . | . . . . . . Kills | -11 -10 -10 -9 -9 -6 ------- Run | Yrd Mat Sub Rec Scr Fac Combat Hostiles Destroyed 39 | . 11 16 . . 12 Melee 23 | . 5 6 . . 12 Guns 5 | . 5 . . . . Classes Destroyed 13 | 2 6 2 . . 3 Worker 4 | . . . . . 4 Builder 3 | . . . . . 3 Tunneler 4 | 2 1 . . . 1 Hauler 3 | . 2 . . . 1 Recycler 5 | 1 1 . 3 . . Mechanic 1 | . 1 . . . . Operator 2 | . 2 . . . . Watcher 5 | . 3 . . . 2 Swarmer 12 | . 3 3 . . 6 Grunt 13 | . 8 2 . . 3 Sentry 2 | . . 1 . . 1 Programmer 2 | . . . . . 2 Subdweller 10 | . . 10 . . . Best Kill Streak 11 | 3 2 3 3 . 11 Combat Bots Only 4 | . 2 3 . . 4 Max Kills in Single Turn 1 | 1 1 1 1 . 1 Gunslinging . | . . . . . . Exploded . | . . . . . . Melee 1 | . 1 1 . . 1 Uniques/NPCs Destroyed . | . . . . . . Combat | -11 -10 -10 -9 -9 -6 -------- Run | Yrd Mat Sub Rec Scr Fac Hostile Shots Fired 278 | . 61 100 . . 117 Missed 88 | . 16 29 . . 43 Hits 190 | . 45 71 . . 74 Projectile 190 | . 45 71 . . 74 Critical Strikes 4 | . 1 . . . 3 Damage Taken 2744 | . 457 1257 . . 1030 Core 2188 | . 378 944 . . 866 Absorbed by Shields 309 | . 51 258 . . . Redirected to Core 1468 | . 244 673 . . 551 Core Remaining (%) 100 | 100 . . . 100 . Volleys Fired 30 | 6 24 . . . . Largest 2 | 2 2 . . . . Hottest 80 | 80 80 . . . . Shots Fired 60 | 12 48 . . . . Gun 60 | 12 48 . . . . Cannon . | . . . . . . Launcher . | . . . . . . Special . | . . . . . . Kinetic . | . . . . . . Thermal 60 | 12 48 . . . . Explosive . | . . . . . . Electromagnetic . | . . . . . . Robot Hit Streak 10 | 4 10 . . . . Robot Miss Streak 2 | 2 2 . . . . Penetration Max . | . . . . . . Secondary Targets 1 | . 1 . . . . Max Gunslinging Chain 1 | . 1 . . . . Shots Hit Robots 188 | 6 56 75 3 . 48 Core Hits 60 | 4 22 9 . . 25 Critical Kills 3 | . . 3 . . . Critical Parts Destroyed 10 | . 3 7 . . . Critical Strikes 20 | . 3 16 . . 1 Smash 19 | . 3 16 . . . Sever 1 | . . . . . 1 Melee Attacks 288 | . 36 138 8 2 104 Impact 181 | . 36 137 8 . . Slashing 85 | . . . . 1 84 Piercing 22 | . . 1 . 1 20 Sneak Attacks 22 | . 6 2 3 . 11 Combat Hostiles 2 | . . 2 . . . Follow-up Attacks 36 | . 2 20 . . 14 Damage Inflicted 6862 | 66 1375 2809 214 . 2398 Guns 472 | 66 406 . . . . Cannons . | . . . . . . Explosions . | . . . . . . Melee 6390 | . 969 2809 214 . 2398 Ramming . | . . . . . . Kinetic . | . . . . . . Thermal 472 | 66 406 . . . . Explosive . | . . . . . . Electromagnetic . | . . . . . . Impact 3992 | . 969 2809 214 . . Slashing 2189 | . . . . . 2189 Piercing 209 | . . . . . 209 Highest Corruption 3 | . . . . . 3 Average Corruption 2 | . . . . . 2 Corruption Purged . | . . . . . . Corruption Blocked . | . . . . . . Effects 5 | . . . . . 5 Message Errors 2 | . . . . . 2 Matter Fused 2 | . . . . . 2 Parts Rejected 1 | . . . . . 1 Overload Shots . | . . . . . . Overflow Damage 1131 | . 272 616 114 . 129 Projectiles . | . . . . . . Explosions . | . . . . . . Melee 1131 | . 272 616 114 . 129 Knockbacks 14 | . 3 11 . . . Impact 14 | . 3 11 . . . Kinetic . | . . . . . . Secondary . | . . . . . . Self-Inflicted Damage . | . . . . . . Shots . | . . . . . . Rammed . | . . . . . . Targets Rammed . | . . . . . . Kicked . | . . . . . . Crushed . | . . . . . . Highest Temperature 90 | . 90 . . . 13 Average Temperature 35 | . 36 . . . 11 Received Heat Transfer 625 | . 227 242 . . 156 Siege Activations . | . . . . . . Martial Activations . | . . . . . . Shielding Activations . | . . . . . . Robots Disrupted . | . . . . . . Combat Hostiles . | . . . . . . Robots Corrupted 17 | . 5 12 . . . Combat Hostiles 13 | . 1 12 . . . Parts Fried 14 | . 2 11 1 . . Impact Corruptions 34 | . 11 20 3 . . Robots Melted . | . . . . . . Combat Hostiles . | . . . . . . Parts Melted 2 | 1 1 . . . . Heat Transferred 1075 | 150 925 . . . . Parts Sabotaged . | . . . . . . Parts Stolen . | . . . . . . Parts Stripped . | . . . . . . Power Chain Reactions . | . . . . . . Alert | -11 -10 -10 -9 -9 -6 ------- Run | Yrd Mat Sub Rec Scr Fac Maximum Alert Level 1 | . . . . . 1 Low Security (%) 97 | 100 100 . 100 . 92 Level 1 2 | . . . . . 7 Level 2 . | . . . . . . Level 3 . | . . . . . . Level 4 . | . . . . . . Level 5 . | . . . . . . High Security . | . . . . . . Max Security . | . . . . . . Peak Influence 289 | 5 140 . 10 . 289 Initial . | . . . . . . Average 35 | 1 44 . . . 51 Influence Increases 1196 | 15 460 230 48 . 443 Destroy 0b10 Robot/C 580 | . 220 120 . . 240 Destroy 0b10 Robot/NC 135 | 15 50 . 15 . 55 Destroy Leader 136 | . 50 20 . . 66 Successful Hack 76 | . 34 . 30 . 12 Disable Machine 15 | . 15 . . . . Destroy Structure 29 | . 1 . 3 . 25 Partial Spotted 15 | . . . . . 15 Lose Combat Pursuer 210 | . 90 90 . . 30 Influence Decreases 907 | 15 460 230 48 . 154 Time Decay 802 | 15 365 220 48 . 154 Lost Part 10 | . . 10 . . . Purge Threat 95 | . 95 . . . . Squads Dispatched 5 | . 1 . . . 4 Investigation 1 | . . . . . 1 Extermination 2 | . . . . . 2 Reinforcement 2 | . 1 . . . 1 Assault . | . . . . . . Garrison . | . . . . . . Intercept . | . . . . . . Searches Triggered . | . . . . . . Construction Impeded . | . . . . . . Haulers Reinforced . | . . . . . . Active Scanning Responses . | . . . . . . Cargo Convoy Interrupts . | . . . . . . Stealth | -11 -10 -10 -9 -9 -6 --------- Run | Yrd Mat Sub Rec Scr Fac Distress Signals 1 | . . . . . 1 Communications Jammed . | . . . . . . Distress Signals . | . . . . . . Times Spotted 80 | . 29 27 . 6 18 Peak Tracking Total 5 | . 5 3 . 4 4 Tactical Retreats 11 | . 4 5 . 1 1 Traps | -11 -10 -10 -9 -9 -6 ------- Run | Yrd Mat Sub Rec Scr Fac Traps Triggered 5 | . 1 3 . . 1 Indirectly . | . . . . . . Trap Hack Attempts . | . . . . . . Triggered . | . . . . . . Disarmed . | . . . . . . Reprogrammed . | . . . . . . Reused . | . . . . . . Traps Extracted . | . . . . . . Installed . | . . . . . . Triggered . | . . . . . . Machines | -11 -10 -10 -9 -9 -6 ---------- Run | Yrd Mat Sub Rec Scr Fac Machines Disabled 3 | . 1 1 . 1 . Max in Single Turn 1 | . 1 1 . 1 . Machines Repaired . | . . . . . . Machines Dismantled . | . . . . . . Machines Sabotaged . | . . . . . . Overloaded Fab Kills . | . . . . . . Hacking | -11 -10 -10 -9 -9 -6 --------- Run | Yrd Mat Sub Rec Scr Fac Machines Accessed 38 | . 9 4 12 8 5 Terminals 16 | . 7 . 6 . 3 Fabricators . | . . . . . . Repair Stations . | . . . . . . Recycling Units 8 | . 2 . 5 . 1 Scanalyzers 1 | . . . . . 1 Garrison Access . | . . . . . . Total Hacks 145 | . 30 16 36 45 18 Successful 112 | . 21 16 22 45 8 Failed 31 | . 8 . 14 . 9 Catastrophic 2 | . 1 . . . 1 Database Lockouts 2 | . 1 . . . 1 Manual 62 | . 26 . 23 . 13 Terminals 52 | . 24 . 18 . 10 Fabricators . | . . . . . . Repair Stations . | . . . . . . Recycling Units 22 | . 6 . 12 . 4 Scanalyzers 4 | . . . . . 4 Garrison Access . | . . . . . . Terminal Hacks 72 | . 4 16 6 45 1 Record 61 | . . 13 5 43 . Robot Analysis 2 | . 2 . . . . Prototype ID Bank 1 | . 1 . . . . Open Door 2 | . . 1 . 1 . Unreport Threat 1 | . 1 . . . . Reprogram Traps 1 | . . . . . 1 Proto ID Catalog 2 | . . 1 . 1 . Release Object 2 | . . 1 1 . . Fabricator Hacks . | . . . . . . Repair Station Hacks . | . . . . . . Recycling Unit Hacks 9 | . 3 . 5 . 1 Report Inventory 8 | . 2 . 5 . 1 Retrieve Components 1 | . 1 . . . . Scanalyzer 1 | . . . . . 1 Retrieve Study 1 | . . . . . 1 Garrison Access Hacks . | . . . . . . Unauthorized Hacks 29 | . 13 . 11 . 5 Terminals 22 | . 11 . 7 . 4 Track 4 | . 4 . . . . Botnet 5 | . 2 . 2 . 1 Operators 1 | . . . 1 . . Skim 12 | . 5 . 4 . 3 Fabricators . | . . . . . . Repair Stations . | . . . . . . Recycling Units 7 | . 2 . 4 . 1 Reject 6 | . 2 . 4 . . Fedlink 1 | . . . . . 1 Scanalyzers . | . . . . . . Garrison Access . | . . . . . . Data Cores Recovered 1 | . 1 . . . . Used 1 | . 1 . . . . Hacking Detections 22 | . 9 . 9 . 4 Full Trace Events . | . . . . . . Feedback Events . | . . . . . . Feedback Blocked . | . . . . . . Robot Schematics Acquired . | . . . . . . Robots Built . | . . . . . . Authchips . | . . . . . . Time . | . . . . . . Total Robot Build Rating . | . . . . . . Part Schematics Acquired . | . . . . . . Parts Built . | . . . . . . Authchips . | . . . . . . Time . | . . . . . . Total Part Build Rating . | . . . . . . Part Studies Acquired 1 | . . . . . 1 Parts Repaired . | . . . . . . Time . | . . . . . . Parts Recycled . | . . . . . . Recycled Matter . | . . . . . . Retrieved Matter . | . . . . . . Retrieved Components 9 | . 9 . . . . Parts Scanalyzed . | . . . . . . Part Schematics Acquired . | . . . . . . Parts Damaged . | . . . . . . Bothacking | -11 -10 -10 -9 -9 -6 ------------ Run | Yrd Mat Sub Rec Scr Fac Used RIF Installer . | . . . . . . Robots Hacked . | . . . . . . Non-combat . | . . . . . . Combat . | . . . . . . Robot Hacks Applied . | . . . . . . Relay Couplers Released . | . . . . . . Fabnet Peak Effective % . | . . . . . . Robots Rewired . | . . . . . . Allies Hacked . | . . . . . . Hacks Repelled . | . . . . . . Allies | -11 -10 -10 -9 -9 -6 -------- Run | Yrd Mat Sub Rec Scr Fac Total Allies 1 | . . . . 1 . Largest Group 1 | . . . . 1 . Highest-Rated Group 34 | . . . . 34 . Highest-Rated Ally 34 | . . . . 34 . Total Orders 1 | . . . . 1 . ROAM 1 | . . . . 1 . Ally Attacks . | . . . . . . Total Damage . | . . . . . . Kills . | . . . . . . Allies Corrupted . | . . . . . . Allies Melted 2 | . . . . 2 . Intel | -11 -10 -10 -9 -9 -6 ------- Run | Yrd Mat Sub Rec Scr Fac Active Infowar (turns) 8453 | 71 1357 3504 765 1560 1196 Terrain 8453 | 71 1357 3504 765 1560 1196 Seismic 127 | 55 72 . . . . Robot Analysis Total 2 | . 2 . . . . Derelict Logs Recovered 1 | . . 1 . . . Drone Launches . | . . . . . . Drone Recoveries . | . . . . . . Exploration | -11 -10 -10 -9 -9 -6 ------------- Run | Yrd Mat Sub Rec Scr Fac Turns Passed 8503 | 120 1357 3504 765 1560 1197 Spaces Moved 5282 | 50 1080 1954 615 963 620 Core 1 | 1 . . . . . Treads . | . . . . . . Legs . | . . . . . . Wheels 1959 | 49 792 698 420 . . Hover 1986 | . 172 1256 . 57 501 Flight 1336 | . 116 . 195 906 119 Fastest Speed 35 | 50 56 56 100 35 35 Average Speed 90 | 90 88 89 105 111 47 Slowest Speed 200 | 100 200 120 115 115 60 Overloaded Moves . | . . . . . . Propulsion Burnouts . | . . . . . . Robots Hopped . | . . . . . . Potential Cave-ins . | . . . . . . Cave-ins Triggered . | . . . . . . Exploration Rate (%) 65 | 6 99 93 95 80 19 Regions Visited 5 Branch Regions 3 Pre-discovered Areas 1 | . 1 . . . . Known Exits Taken 3 | . 1 1 1 . . Unknown Exits Taken 2 | 1 . . . 1 . Scrap Searched 18 | . . 16 . 2 . Spaces Dug 36 | . 1 7 3 . 25 Terrain Destroyed 36 | . 1 7 3 . 25 Melee 36 | . 1 7 3 . 25 Projectile . | . . . . . . AOE . | . . . . . . Terrain Rammed . | . . . . . . Walls Destroyed . | . . . . . . Machines Disabled . | . . . . . . Actions | -11 -10 -10 -9 -9 -6 --------- Run | Yrd Mat Sub Rec Scr Fac Total 8629 | 109 1389 3551 718 1446 1416 Wait 2943 | 46 212 1449 88 444 704 Move 5277 | 49 1079 1953 614 962 620 Hop . | . . . . . . Pick Up 7 | 1 3 1 . 2 . Fast Attach 38 | 7 8 8 5 4 6 Attach 2 | . . 2 . . . Detach 5 | . 2 2 . 1 . Swap 11 | . 7 . . 2 2 Drop 26 | . 10 4 5 5 2 Fire 30 | 6 24 . . . . Melee 209 | . 30 102 6 1 70 Ram . | . . . . . . Kick . | . . . . . . Crush . | . . . . . . Escape Stasis . | . . . . . . Rewire 1 | . . . . 1 . Trap . | . . . . . . Miscellaneous 80 | . 14 30 . 24 12 Route ------- -11/Scrapyard -10/Materials (discovered 6 exits: *Mat x3 / *Min x2 / *Sub) -10/Subcaves (discovered 3 exits: *Mat x2 / *Rec) -9/Recycling (discovered 2 exits: *Fac / *Scr) -9/Scraptown (discovered 2 exits: *Fac x2) -6/Factory History --------- Turn | Location | Event 1 | -11/Scrapyard | Upgraded with Propulsion slot (x1) 1 | -11/Scrapyard | Upgraded with Utility slot (x2) 1 | -11/Scrapyard | Upgraded with Weapon slot (x1) 29 | -11/Scrapyard | Discovered new exit (range 12) 121 | -11/Scrapyard | Entered Materials 181 | -10/Materials | Discovered new exit (range 4) 278 | -10/Materials | Discovered new exit (range 11) 309 | -10/Materials | Build established: Mutant 346 | -10/Materials | Discovered new exit (range 12) 501 | -10/Materials | Discovered new exit (range 16) 599 | -10/Materials | Central database locked down 771 | -10/Materials | Discovered new exit (range 16) 790 | -10/Materials | Identified exit to Mines 805 | -10/Materials | Build established: Gladiator 963 | -10/Materials | Discovered new exit (range 3) 964 | -10/Materials | Identified exit to Materials 1030 | -10/Materials | Learned location of 2 exits from Materials 1054 | -10/Materials | Learned 8 Materials zone layouts 1066 | -10/Materials | Learned 4 Recycling zone layouts 1067 | -10/Materials | Loaded intel: 8 terminal locations 1075 | -10/Materials | Learned 4 Recycling zone layouts 1450 | -10/Materials | Identified exit to Subcaves 1478 | -10/Materials | Entered Subcaves 1480 | -10/Subcaves | Reached level 2 1480 | -10/Subcaves | Upgraded with Weapon slot (x1) 1492 | -10/Subcaves | Discovered new exit (range 14) 1672 | -10/Subcaves | Build established: Scavenger-Gladiator 1711 | -10/Subcaves | Core integrity fell below 50% 1961 | -10/Subcaves | Shifting Twisted Machinery released Sub. Monowheel 2016 | -10/Subcaves | Shifting Twisted Machinery released Sub. Power Source 2024 | -10/Subcaves | Visited Clippyterm 2026 | -10/Subcaves | Learned Research security intel 2255 | -10/Subcaves | Discovered new exit (range 14) 2387 | -10/Subcaves | Identified exit to Materials 2571 | -10/Subcaves | Reached level 3 2575 | -10/Subcaves | Upgraded with Utility slot (x1) 3104 | -10/Subcaves | Visited 4L-MR0's lab 3119 | -10/Subcaves | Found Meta Core 3121 | -10/Subcaves | Attached Meta Core, gained temporary slots: Propulsion, Utility, Weapon 3178 | -10/Subcaves | Build established: Gladiator 3740 | -10/Subcaves | Core integrity fell below 20% 4065 | -10/Subcaves | Released subatomizers from SUBCON Basin 4580 | -10/Subcaves | Discovered exit to Materials (range 7) 4606 | -10/Subcaves | Shifting Twisted Machinery released Shrapnel Trap 4657 | -10/Subcaves | Learned location of 1 exit from Materials 4981 | -10/Subcaves | Identified exit to Recycling 4982 | -10/Subcaves | Entered Recycling 4983 | -9/Recycling | Identified exit to Factory 5710 | -9/Recycling | Scanned before Scraplab entrance 5717 | -9/Recycling | Discovered new exit (range 16) 5728 | -9/Recycling | Entered Scraplab 5746 | -9/Recycling | Identified exit to Scraptown 5747 | -9/Recycling | Entered Scraptown 5749 | -9/Scraptown | Reached level 4 5869 | -9/Scraptown | Heard Great Nut preacher, LISTEN AND RECITE! 5985 | -9/Scraptown | Discovered new exit (range 16) 6149 | -9/Scraptown | Visited TADAMA 6300 | -9/Scraptown | Visited UFD Registry 6300 | -9/Scraptown | Registered with UFD as "Rustwarp" 6317 | -9/Scraptown | Visited Cave Peace 6374 | -9/Scraptown | Visited LU-1G1's Boring Crew 6394 | -9/Scraptown | Visited Chapter 10 6422 | -9/Scraptown | Visited Botcube Research 6432 | -9/Scraptown | Lrg. Botcube activated 6436 | -9/Scraptown | Lrg. Botcube completed mutation into core form (unarmed). 6484 | -9/Scraptown | Visited Science Guys 6539 | -9/Scraptown | Visited Abandonware Association 6551 | -9/Scraptown | Learned abandonware demo "ERRANTS.EXE" 6551 | -9/Scraptown | Learned abandonware demo "REVENGE.EXE" 6558 | -9/Scraptown | Discovered new exit (range 15) 6574 | -9/Scraptown | Visited A0-MCA Data Center 6581 | -9/Scraptown | Given a C+ rating by A0-MCA 6584 | -9/Scraptown | Found A0-MCA's Component Scanner 6649 | -9/Scraptown | Visited Sword Containment 6661 | -9/Scraptown | Found Companion Sword 6690 | -9/Scraptown | Visited Modified Component R&D 6801 | -9/Scraptown | Met Optimus 6801 | -9/Scraptown | Accepted into 0bPrime 7201 | -9/Scraptown | Civil war broke out across Scraptown 7209 | -9/Scraptown | Found Expert System 7263 | -9/Scraptown | Visited Science Testing Area 7307 | -9/Scraptown | Entered Factory 7309 | -6/Factory | Reached level 5 7311 | -6/Factory | Upgraded with Propulsion slot (x1) 7311 | -6/Factory | Upgraded with Utility slot (x1) 7334 | -6/Factory | Lost 15 allies 7401 | -6/Factory | Central database locked down 7572 | -6/Factory | Build established: Scout 8191 | -6/Factory | Loaded intel: 7 recycling unit locations 8352 | -6/Factory | Core integrity fell below 50% 8367 | -6/Factory | Reached level 6 8493 | -6/Factory | Core integrity fell below 20% 8504 | -6/Factory | Destroyed by P-60 Hacker with Shock Rifle Last Messages --------------- 08420_ Sneak attack on K-01 Serf. 08420_ K-01 Serf destroyed. 08425_ Destroyed Shock Rifle. 08426_ DP/N2P8Z ,XLTD:H:COYS> 08427_ Mak. Spear follow-up attack on P-60 Hacker. 08427_ P-60 Hacker destroyed. 08431_ Acquired 10 matter. 08444_ R-10 Processor collects Imp. Heat Sink. 08453_ RX7JYYOI46EHXSA8X 08462_ Scythe+ follow-up attack on A-15 Conveyor. 08462_ A-15 Conveyor sends out distress signal. 08472_ System corrupted: Matter fused (-6). 08474_ S-27 Virus destroyed. 08477_ Scythe+ follow-up attack on S-27 Virus. 08480_ S-27 Virus destroyed. 08490_ System corrupted: Adv. Terrain Scanner rejected. 08491_ Acquired Adv. Terrain Scanner. 08496_ Component scanned: Hvy. EM Shotgun. 08500_ S-27 Virus destroyed. Map ----- +----------------------------------------------------+ | ################## # """ ### | | ################## # "" ### | | ################## # ### | | ####?############# + ### | | ################## """"""" # """"" ### | | ################## """"""" # """"" ### | | ################## """"""" # """ ### | | ##########?####### """"""" # ### | | ######"########################### ##### | | #! ######### """ # | | # #######?# "T" + ? | | # """" """ ######### #""" ? | | # """" """ ######### ? #"R """?? ""? | | # """" """ ######### ? #""" """"" """?" | | # """" ################### ?# """""?"""?? | | # #########T ########### ?? | | # """" """" " % %= ""? "?? | | # """" """" # = """"" """?? | | # """" """"?# "" """"" ?""?? | | # """" """" # """ ? ?? | | # # T" ?? | | # ! # ######### """ # """####?##? | | #########+### #[ # ""Y #"" F""###?###? | | # # #"""""?######?? | | # """%p* # "??" ####?#?? | | # """""@# #####?#####?#?? | | # """"" # """ ####? ???? | | # # """ ##### ???? | | ##+########## ######### """ ####? ? ????? | | ###### #??###### #?### ???? | | ###### """ ? # ??????? | | ###### ? """ ?# ?? ????? | | ###### ? """ + ??????? | | """""" ###### #? ???????? | | """""" #####? ? ? ? ???????? | | """""" #######? #?################### ? ? ??????? | | """""" ###?#?# ?? ? ? # ??????????? | | ##???##? ? ? ??" ""?? # ? ?#??? ???????? | | #######?#?#???? ??? "?"???? ? ?? ?? ? ????????? | | ????? ??? ?#???"?? "??? ????"? ? ??????????? | | ## ?????????#???##???? ? ?? ? ?????????????????? | | ?????????????##?#?? ???"??"???# ??"??????????????? | | ?????????????????? ??"?"??"??????????????????????? | | ?????????????????#? ?"?"?"?"???? ????????????????? | | ??????????????????? ????????? ????""?????????????? | | ????????????????????????? ????????Y"?????????????? | | ??????????????????????????????????""?????????????? | | ?????????????????????????????????????????????????? | | ?????????????????????????????????????????????????? | | ?????????????????????????????????????????????????? | +----------------------------------------------------+ Best States ------------- Heat Dissipation 31 Energy Generation 17 Energy Capacity 250 Matter Stores 300 Matter Capacity 300 Sight Range 16 Robot Scan Range 18 Terrain Scan Range 20 Terrain Scan Density 510 Additional Mass Support 6 Armor Coverage 100 Evasion (%) 63 Targeting Accuracy 10 Melee Accuracy 6 Offensive Hacking 11 Item Schematics ----------------- None Robot Schematics ------------------ None Fabricated ------------ Nothing Repaired ---------- Nothing Studied --------- Scythe | -6/Factory | Hacked Alien Tech Used ----------------- None Achievements -------------- None Challenges ------------ None RPGLIKE | -11 -10 -10 -9 -9 -6 --------- Run | Yrd Mat Sub Rec Scr Fac Levels Raised 5 | . . 2 . 1 2 XP Earned 11190 | 3000 1465 1700 1090 900 3035 XP Spent 9500 | 3000 . 2950 . . 3550 Upgrades 27 | 11 . 9 . . 7 Propulsion Slot 2 | 1 . . . . 1 Utility Slot 4 | 2 . 1 . . 1 Weapon Slot 2 | 1 . 1 . . . Heat Dissipation 1 | 1 . . . . . Mass Support 1 | . . 1 . . . Inventory Capacity 2 | 1 . . . . 1 Sensor Range 9 | 4 . 1 . . 4 Terrain Scan Density 5 | 1 . 4 . . . Melee Accuracy 1 | . . 1 . . . Protomatter Created 522 | . 151 210 . . 161 Integrity Restored 1739 | . 305 630 . 540 264 Core 1586 | . 291 630 . 401 264 Parts 153 | . 14 . . 139 . Protomatter Decayed 2057 | . 17 82 . 1958 . Game ------ Seed WarlordDispersalGravjet Manual? 0 Play Time 01:12:22 Cumulative 52.0 hours Start 2025.11.15 @ 05:24:40 End 2025.11.15 @ 06:38:56 Sessions 1 Manual Loads 0 Difficulty Rogue Special Mode Winter2019/RPGLIKE Game No. 45 Rogue 45 Adventurer 0 Explorer 0 Win Type - Total 0 Types 0/0/0/0/0/0/0/0/0/0 Lore% 48 Gallery% 32 Achievement% 30 Wizard Run 0 Options --------- Layout 0 ASCII 0 Keyboard 0 Movement Mouse Keybinds 0 Fullscreen 2 Font 24/Smallcaps Map View 76x50 Zoom Use 0% Tactical HUD 1 Map Filters NONE Filters NONE Steam 1 RUN: 32c1530d-5051-44d8-911f-133ac9b03c30